fUSD/lending_fUSD_20260614
["ID","MTS","AMOUNT","RATE_DAILY","PERIOD"]
[425022146,1781435456000,-500.0,0.00027945,8]
[425022177,1781435456000,-500.0,0.00027945,8]
[425022175,1781435456000,-248.75,0.00027945,8]
[425022193,1781435456000,-253.4,0.00027945,8]
[425022167,1781435456000,-500.0,0.00027945,8]
[425022169,1781435456000,-500.0,0.00027945,8]
[425022148,1781435456000,-500.0,0.00027945,8]
[425022149,1781435456000,-500.0,0.00027945,8]
[425022151,1781435456000,-212.61,0.00027945,8]
[425022154,1781435456000,-500.0,0.00027945,8]
[425022150,1781435456000,-198.28,0.00027945,8]
[425022153,1781435456000,-1077.81,0.00027945,8]
[425022156,1781435456000,-500.0,0.00027945,8]
[425022166,1781435456000,-521.7,0.00027945,8]
[425022157,1781435456000,-601.59,0.00027945,8]
[425022162,1781435456000,-500.0,0.00027945,8]
[425022152,1781435456000,-297.07173083,0.00027945,8]
[425022161,1781435456000,-500.0,0.00027945,8]
[425022155,1781435456000,-500.0,0.00027945,8]
[425022171,1781435456000,-500.0,0.00027945,8]
[425022168,1781435456000,-500.0,0.00027945,8]
[425022165,1781435456000,-500.0,0.00027945,8]
[425022170,1781435456000,-500.0,0.00027945,8]
[425022158,1781435456000,-500.0,0.00027945,8]
[425022164,1781435456000,-475.92,0.00027945,8]
[425022160,1781435456000,-500.0,0.00027945,8]
[425022163,1781435456000,-500.0,0.00027945,8]
[425022172,1781435456000,-500.0,0.00027945,8]
[425022224,1781435457000,-41529.38077946,0.00028,3]
[425022217,1781435457000,-400.2,0.00027977,30]
[425022227,1781435457000,-10000.0,0.00028,2]
[425022223,1781435457000,-320.76,0.00028,30]
[425022216,1781435457000,-150.0,0.00027973,2]
[425022219,1781435457000,-300.02,0.00027988,120]
[425022225,1781435457000,-2148.67,0.00028,7]
[425022220,1781435457000,-977.18,0.00027999,7]
[425022218,1781435457000,-400.17,0.00027977,30]
[425022240,1781435457000,-2120.85,0.00028053,7]
[425022229,1781435457000,-400.2,0.00028007,2]
[425022239,1781435457000,-500.0,0.00028044,8]
[425022228,1781435457000,-191.63740801,0.00028007,2]
[425022230,1781435457000,-400.17,0.00028007,2]
[425022231,1781435457000,-4024.37,0.00028008,2]
[425022234,1781435457000,-3557.79,0.00028033,30]
[425022215,1781435457000,-400.17,0.00027946,7]
[425022237,1781435457000,-400.17,0.00028038,7]
[425022226,1781435457000,-223.06054224,0.00028,2]
[425022221,1781435457000,-575.32,0.00027999,7]
[425022212,1781435457000,-2000.0,0.00027945,2]
[425022214,1781435457000,-400.2,0.00027946,7]
[425022238,1781435457000,-160.0,0.00028042,3]
[425022196,1781435457000,-568.53,0.00027945,8]
[425022200,1781435457000,-226.97,0.00027945,8]
[425022201,1781435457000,-471.77,0.00027945,8]
[425022199,1781435457000,-500.0,0.00027945,8]
[425022198,1781435457000,-500.0,0.00027945,8]
[425022197,1781435457000,-500.0,0.00027945,8]
[425022203,1781435457000,-500.0,0.00027945,8]
[425022222,1781435457000,-500.0,0.00027999,7]
[425022208,1781435457000,-151.0,0.00027945,7]
[425022206,1781435457000,-1000.0,0.00027945,8]
[425022204,1781435457000,-205.95930386,0.00027945,8]
[425022205,1781435457000,-500.0,0.00027945,8]
[425022202,1781435457000,-178.17,0.00027945,8]
[425022210,1781435457000,-1000.0,0.00027945,8]
[425022209,1781435457000,-300.0,0.00027945,2]
[425022207,1781435457000,-2260.17,0.00027945,8]
[425022211,1781435457000,-500.0,0.00027945,15]
[425022213,1781435457000,-484.91,0.00027945,8]
[425022235,1781435457000,-2361.88,0.00028033,30]
[425022247,1781435457000,-400.17,0.00028099,2]
[425022232,1781435457000,-3556.42,0.00028033,30]
[425022260,1781435457000,-500.0,0.00028199,8]
[425022263,1781435457000,-500.0,0.00028204,8]
[425022262,1781435457000,-90147.66341203,0.000282,6]
[425022259,1781435457000,-500.0,0.00028199,8]
[425022269,1781435457000,-1636.44,0.00028205,8]
[425022267,1781435457000,-2292.85,0.00028205,8]
[425022270,1781435457000,-460.98,0.00028205,8]
[425022268,1781435457000,-706.18,0.00028205,8]
[425022276,1781435457000,-500.0,0.00028205,8]
[425022278,1781435457000,-203.26,0.00028205,8]
[425022233,1781435457000,-2365.98,0.00028033,30]
[425022274,1781435457000,-577.21,0.00028205,8]
[425022271,1781435457000,-368.68,0.00028205,8]
[425022272,1781435457000,-500.0,0.00028205,8]
[425022275,1781435457000,-191.55,0.00028205,8]
[425022277,1781435457000,-522.94,0.00028205,8]
[425022280,1781435457000,-407.8,0.00028205,8]
[425022281,1781435457000,-559.60121122,0.00028205,8]
[425022279,1781435457000,-500.0,0.00028205,8]
[425022258,1781435457000,-2361.88,0.00028194,7]
[425022261,1781435457000,-500.0,0.00028199,2]
[425022273,1781435457000,-392.97,0.00028205,8]
[425022256,1781435457000,-2365.98,0.00028194,7]
[425022241,1781435457000,-2121.34,0.00028053,7]
[425022243,1781435457000,-400.17,0.00028068,30]
[425022244,1781435457000,-1674.0,0.0002809,30]
[425022242,1781435457000,-400.2,0.00028068,30]
[425022246,1781435457000,-400.2,0.00028099,2]
[425022252,1781435457000,-360.76,0.00028137,10]
[425022245,1781435457000,-350.0,0.00028096,10]
[425022248,1781435457000,-1188.63,0.000281,7]
[425022236,1781435457000,-400.2,0.00028038,7]
[425022249,1781435457000,-1988.22,0.000281,7]
[425022250,1781435457000,-400.36,0.0002813,7]
[425022254,1781435457000,-382.62407007,0.00028188,2]
[425022264,1781435457000,-500.0,0.00028204,8]
[425022265,1781435457000,-573.84,0.00028204,8]
[425022266,1781435457000,-696.95,0.00028204,8]
[425022253,1781435457000,-313.69,0.0002815,2]
[425022255,1781435457000,-3556.42,0.00028194,7]
[425022251,1781435457000,-400.32,0.0002813,7]
[425022257,1781435457000,-3557.79,0.00028194,7]
[425022283,1781435458000,-1186.74853866,0.00027397,10]
[425022282,1781435458000,-405.24,0.00021273,2]
[425022284,1781435458000,-5154.78606281,0.00027397,10]
[425022286,1781435458000,-3150.0,0.00027397,10]
[425022287,1781435458000,-488.32685115,0.00027397,10]
[425022285,1781435458000,-300.0,0.00027397,10]
[425022304,1781435459000,-2113.34970469,0.00028216,8]
[425022308,1781435459000,-500.0,0.00028217,8]
[425022306,1781435459000,-500.0,0.00028217,8]
[425022309,1781435459000,-2110.0,0.00028217,2]
[425022303,1781435459000,-151.0,0.00028216,8]
[425022298,1781435459000,-500.0,0.00028205,8]
[425022294,1781435459000,-296.66,0.00028205,8]
[425022296,1781435459000,-500.0,0.00028205,8]
[425022293,1781435459000,-589.95,0.00028205,8]
[425022297,1781435459000,-167.3,0.00028205,8]
[425022299,1781435459000,-353.29,0.00028205,8]
[425022291,1781435459000,-79.11878878,0.00028205,8]
[425022300,1781435459000,-500.0,0.00028205,8]
[425022292,1781435459000,-529.1,0.00028205,8]
[425022301,1781435459000,-1066.66,0.00028205,8]
[425022290,1781435459000,-451.39854738,0.00027397,10]
[425022288,1781435459000,-26213.3742759,0.00023,2]
[425022289,1781435459000,-437.0,0.00027123,10]
[425022295,1781435459000,-383.05,0.00028205,8]
[425022302,1781435459000,-500.0,0.00028216,8]
[425022315,1781435459000,-500.0,0.00028218,8]
[425022313,1781435459000,-500.0,0.00028218,8]
[425022328,1781435459000,-575.32,0.00028218,7]
[425022311,1781435459000,-500.0,0.00028218,8]
[425022327,1781435459000,-575.32,0.00028218,7]
[425022323,1781435459000,-977.18,0.00028218,7]
[425022321,1781435459000,-977.18,0.00028218,7]
[425022322,1781435459000,-977.18,0.00028218,7]
[425022324,1781435459000,-977.3,0.00028218,7]
[425022319,1781435459000,-1004.18294962,0.00028218,8]
[425022317,1781435459000,-500.0,0.00028218,8]
[425022329,1781435459000,-575.45208917,0.00028218,7]
[425022318,1781435459000,-1004.18294962,0.00028218,8]
[425022320,1781435459000,-977.18,0.00028218,7]
[425022305,1781435459000,-500.0,0.00028217,8]
[425022307,1781435459000,-500.0,0.00028217,8]
[425022310,1781435459000,-4262.73,0.00028218,8]
[425022312,1781435459000,-564.21,0.00028218,8]
[425022326,1781435459000,-575.32,0.00028218,7]
[425022314,1781435459000,-342.87,0.00028218,8]
[425022316,1781435459000,-300.23680916,0.00028218,8]
[425022325,1781435459000,-575.32,0.00028218,7]
[425022355,1781435460000,-500.0,0.00028219,8]
[425022344,1781435460000,-696.95,0.00028218,8]
[425022342,1781435460000,-696.95,0.00028218,8]
[425022352,1781435460000,-500.0,0.00028219,8]
[425022354,1781435460000,-500.0,0.00028219,8]
[425022353,1781435460000,-500.0,0.00028219,8]
[425022357,1781435460000,-500.0,0.00028219,8]
[425022361,1781435460000,-500.0,0.00028219,8]
[425022356,1781435460000,-500.0,0.00028219,8]
[425022359,1781435460000,-500.0,0.00028219,8]
[425022358,1781435460000,-500.0,0.00028219,8]
[425022363,1781435460000,-500.0,0.00028219,8]
[425022362,1781435460000,-500.0,0.00028219,8]
[425022364,1781435460000,-1506.29,0.00028219,8]
[425022360,1781435460000,-500.0,0.00028219,8]
[425022346,1781435460000,-500.0,0.00028218,2]
[425022335,1781435460000,-573.84,0.00028218,8]
[425022343,1781435460000,-696.95,0.00028218,8]
[425022331,1781435460000,-500.0,0.00028218,8]
[425022338,1781435460000,-573.84,0.00028218,8]
[425022337,1781435460000,-573.84,0.00028218,8]
[425022333,1781435460000,-500.0,0.00028218,8]
[425022334,1781435460000,-573.84,0.00028218,8]
[425022336,1781435460000,-573.84,0.00028218,8]
[425022332,1781435460000,-500.0,0.00028218,8]
[425022339,1781435460000,-573.84,0.00028218,8]
[425022330,1781435460000,-500.0,0.00028218,8]
[425022340,1781435460000,-696.95,0.00028218,8]
[425022347,1781435460000,-500.0,0.00028218,2]
[425022348,1781435460000,-500.0,0.00028218,2]
[425022350,1781435460000,-799.80855058,0.00028219,10]
[425022351,1781435460000,-2014.88221446,0.00028219,10]
[425022349,1781435460000,-500.0,0.00028218,2]
[425022345,1781435460000,-696.95,0.00028218,8]
[425022367,1781435460000,-1286.88,0.00028219,8]
[425022366,1781435460000,-500.0,0.00028219,8]
[425022341,1781435460000,-696.95,0.00028218,8]
[425022368,1781435460000,-500.0,0.00028219,8]
[425022383,1781435460000,-500.0,0.00028219,8]
[425022387,1781435460000,-500.0,0.00028219,8]
[425022385,1781435460000,-500.0,0.00028219,8]
[425022392,1781435460000,-961.38,0.00028219,8]
[425022394,1781435460000,-500.0,0.00028219,8]
[425022395,1781435460000,-601.94,0.00028219,8]
[425022399,1781435460000,-500.0,0.00028219,8]
[425022402,1781435460000,-500.0,0.00028219,8]
[425022393,1781435460000,-521.9,0.00028219,8]
[425022396,1781435460000,-500.0,0.00028219,8]
[425022398,1781435460000,-556.76,0.00028219,8]
[425022401,1781435460000,-537.56,0.00028219,8]
[425022397,1781435460000,-500.0,0.00028219,8]
[425022403,1781435460000,-1289.85,0.00028219,8]
[425022369,1781435460000,-2156.37,0.00028219,8]
[425022389,1781435460000,-500.0,0.00028219,8]
[425022386,1781435460000,-500.0,0.00028219,8]
[425022400,1781435460000,-500.0,0.00028219,8]
[425022388,1781435460000,-500.0,0.00028219,8]
[425022365,1781435460000,-500.0,0.00028219,8]
[425022381,1781435460000,-500.0,0.00028219,8]
[425022370,1781435460000,-500.0,0.00028219,8]
[425022371,1781435460000,-500.0,0.00028219,8]
[425022372,1781435460000,-500.0,0.00028219,8]
[425022379,1781435460000,-500.0,0.00028219,8]
[425022380,1781435460000,-500.0,0.00028219,8]
[425022378,1781435460000,-599.77,0.00028219,8]
[425022373,1781435460000,-531.68,0.00028219,8]
[425022375,1781435460000,-500.0,0.00028219,8]
[425022376,1781435460000,-1488.35,0.00028219,8]
[425022377,1781435460000,-500.0,0.00028219,8]
[425022391,1781435460000,-779.21,0.00028219,8]
[425022390,1781435460000,-500.0,0.00028219,8]
[425022382,1781435460000,-500.0,0.00028219,8]
[425022374,1781435460000,-815.38,0.00028219,8]
[425022384,1781435460000,-500.0,0.00028219,8]
[425022437,1781435461000,-500.0,0.00028219,8]
[425022442,1781435461000,-500.0,0.00028219,8]
[425022444,1781435461000,-671.22,0.00028219,8]
[425022441,1781435461000,-679.47,0.00028219,8]
[425022436,1781435461000,-859.8,0.00028219,8]
[425022438,1781435461000,-919.22,0.00028219,8]
[425022440,1781435461000,-500.0,0.00028219,8]
[425022429,1781435461000,-500.0,0.00028219,8]
[425022443,1781435461000,-564.22,0.00028219,8]
[425022433,1781435461000,-774.14,0.00028219,8]
[425022439,1781435461000,-664.77,0.00028219,8]
[425022445,1781435461000,-1745.46,0.00028219,8]
[425022454,1781435461000,-515.11,0.00028219,8]
[425022446,1781435461000,-629.17,0.00028219,8]
[425022450,1781435461000,-552.31,0.00028219,8]
[425022449,1781435461000,-500.0,0.00028219,8]
[425022456,1781435461000,-500.0,0.00028219,8]
[425022452,1781435461000,-890.71,0.00028219,8]
[425022447,1781435461000,-500.0,0.00028219,8]
[425022453,1781435461000,-500.0,0.00028219,8]
[425022455,1781435461000,-614.66,0.00028219,8]
[425022451,1781435461000,-707.44,0.00028219,8]
[425022458,1781435461000,-1348.17,0.00028219,8]
[425022432,1781435461000,-500.0,0.00028219,8]
[425022448,1781435461000,-575.17,0.00028219,8]
[425022430,1781435461000,-896.92,0.00028219,8]
[425022407,1781435461000,-811.39,0.00028219,8]
[425022428,1781435461000,-500.0,0.00028219,8]
[425022461,1781435461000,-500.0,0.00028219,8]
[425022413,1781435461000,-500.0,0.00028219,8]
[425022405,1781435461000,-523.52,0.00028219,8]
[425022404,1781435461000,-335.38885352,0.00028219,8]
[425022406,1781435461000,-500.0,0.00028219,8]
[425022408,1781435461000,-500.0,0.00028219,8]
[425022412,1781435461000,-1633.28,0.00028219,8]
[425022411,1781435461000,-500.0,0.00028219,8]
[425022410,1781435461000,-500.0,0.00028219,8]
[425022414,1781435461000,-806.3,0.00028219,8]
[425022418,1781435461000,-500.0,0.00028219,8]
[425022416,1781435461000,-500.0,0.00028219,8]
[425022415,1781435461000,-1359.23,0.00028219,8]
[425022420,1781435461000,-500.0,0.00028219,8]
[425022419,1781435461000,-500.0,0.00028219,8]
[425022417,1781435461000,-500.0,0.00028219,8]
[425022421,1781435461000,-500.0,0.00028219,8]
[425022424,1781435461000,-500.0,0.00028219,8]
[425022422,1781435461000,-500.0,0.00028219,8]
[425022423,1781435461000,-500.0,0.00028219,8]
[425022425,1781435461000,-1597.46,0.00028219,8]
[425022435,1781435461000,-500.0,0.00028219,8]
[425022434,1781435461000,-500.0,0.00028219,8]
[425022426,1781435461000,-757.43,0.00028219,8]
[425022427,1781435461000,-500.0,0.00028219,8]
[425022431,1781435461000,-500.0,0.00028219,8]
[425022466,1781435461000,-500.0,0.00028219,8]
[425022409,1781435461000,-812.74,0.00028219,8]
[425022463,1781435461000,-500.0,0.00028219,8]
[425022490,1781435461000,-525.21,0.00028219,8]
[425022493,1781435461000,-517.72,0.00028219,8]
[425022492,1781435461000,-500.0,0.00028219,8]
[425022503,1781435461000,-270.54262076,0.00028219,8]
[425022494,1781435461000,-926.35,0.00028219,8]
[425022495,1781435461000,-500.0,0.00028219,8]
[425022496,1781435461000,-496.91859581,0.00028219,8]
[425022498,1781435461000,-726.26,0.00028219,8]
[425022502,1781435461000,-500.0,0.00028219,8]
[425022500,1781435461000,-1220.26,0.00028219,8]
[425022499,1781435461000,-500.0,0.00028219,8]
[425022501,1781435461000,-977.24,0.00028219,8]
[425022497,1781435461000,-500.0,0.00028219,8]
[425022507,1781435461000,-500.0,0.00028219,8]
[425022508,1781435461000,-1356.84,0.00028219,8]
[425022504,1781435461000,-554.77,0.00028219,8]
[425022506,1781435461000,-500.0,0.00028219,8]
[425022515,1781435461000,-556.64,0.00028219,8]
[425022505,1781435461000,-500.0,0.00028219,8]
[425022511,1781435461000,-500.0,0.00028219,8]
[425022512,1781435461000,-1678.62,0.00028219,8]
[425022513,1781435461000,-897.18,0.00028219,8]
[425022514,1781435461000,-500.0,0.00028219,8]
[425022509,1781435461000,-569.74,0.00028219,8]
[425022510,1781435461000,-500.0,0.00028219,8]
[425022487,1781435461000,-500.0,0.00028219,8]
[425022488,1781435461000,-2290.01,0.00028219,8]
[425022462,1781435461000,-500.0,0.00028219,8]
[425022484,1781435461000,-500.0,0.00028219,8]
[425022459,1781435461000,-500.0,0.00028219,8]
[425022460,1781435461000,-1088.42,0.00028219,8]
[425022464,1781435461000,-500.0,0.00028219,8]
[425022465,1781435461000,-500.0,0.00028219,8]
[425022457,1781435461000,-500.0,0.00028219,8]
[425022467,1781435461000,-1250.94,0.00028219,8]
[425022468,1781435461000,-1952.73,0.00028219,8]
[425022486,1781435461000,-500.0,0.00028219,8]
[425022470,1781435461000,-978.97,0.00028219,7]
[425022473,1781435461000,-500.0,0.00028219,8]
[425022476,1781435461000,-531.01,0.00028219,7]
[425022474,1781435461000,-787.09,0.00028219,8]
[425022469,1781435461000,-1020.0,0.00028219,8]
[425022472,1781435461000,-500.0,0.00028219,8]
[425022475,1781435461000,-500.0,0.00028219,8]
[425022485,1781435461000,-173.62082702,0.00028219,8]
[425022489,1781435461000,-500.0,0.00028219,8]
[425022483,1781435461000,-500.0,0.00028219,8]
[425022480,1781435461000,-500.0,0.00028219,8]
[425022482,1781435461000,-775.9,0.00028219,8]
[425022481,1781435461000,-2280.24,0.00028219,8]
[425022477,1781435461000,-1008.86,0.00028219,8]
[425022478,1781435461000,-500.0,0.00028219,8]
[425022479,1781435461000,-500.0,0.00028219,8]
[425022471,1781435461000,-500.0,0.00028219,8]
[425022491,1781435461000,-1928.24,0.00028219,8]
[425022560,1781435462000,-500.0,0.00028219,8]
[425022553,1781435462000,-500.0,0.00028219,8]
[425022561,1781435462000,-1370.23,0.00028219,8]
[425022550,1781435462000,-869.79,0.00028219,8]
[425022546,1781435462000,-500.0,0.00028219,8]
[425022551,1781435462000,-500.0,0.00028219,8]
[425022542,1781435462000,-1084.4,0.00028219,8]
[425022549,1781435462000,-678.56,0.00028219,8]
[425022545,1781435462000,-538.92,0.00028219,8]
[425022558,1781435462000,-500.0,0.00028219,8]
[425022559,1781435462000,-500.0,0.00028219,8]
[425022568,1781435462000,-503.63,0.00028219,8]
[425022554,1781435462000,-1025.91,0.00028219,8]
[425022562,1781435462000,-602.41,0.00028219,8]
[425022557,1781435462000,-518.31,0.00028219,8]
[425022556,1781435462000,-874.3,0.00028219,8]
[425022555,1781435462000,-500.0,0.00028219,8]
[425022563,1781435462000,-500.0,0.00028219,8]
[425022564,1781435462000,-500.0,0.00028219,8]
[425022566,1781435462000,-500.0,0.00028219,8]
[425022565,1781435462000,-2334.31,0.00028219,8]
[425022570,1781435462000,-500.0,0.00028219,8]
[425022571,1781435462000,-500.0,0.00028219,8]
[425022548,1781435462000,-506.23,0.00028219,8]
[425022552,1781435462000,-500.0,0.00028219,8]
[425022541,1781435462000,-500.0,0.00028219,8]
[425022528,1781435462000,-500.0,0.00028219,8]
[425022547,1781435462000,-500.0,0.00028219,8]
[425022569,1781435462000,-568.61,0.00028219,8]
[425022518,1781435462000,-895.56,0.00028219,8]
[425022525,1781435462000,-537.41,0.00028219,8]
[425022516,1781435462000,-500.0,0.00028219,8]
[425022521,1781435462000,-500.0,0.00028219,8]
[425022524,1781435462000,-500.0,0.00028219,8]
[425022522,1781435462000,-638.36,0.00028219,8]
[425022520,1781435462000,-442.1498421,0.00028219,8]
[425022519,1781435462000,-500.0,0.00028219,8]
[425022517,1781435462000,-692.5,0.00028219,8]
[425022523,1781435462000,-578.0,0.00028219,8]
[425022527,1781435462000,-1251.89,0.00028219,8]
[425022537,1781435462000,-582.36,0.00028219,8]
[425022526,1781435462000,-500.0,0.00028219,8]
[425022529,1781435462000,-569.66,0.00028219,8]
[425022530,1781435462000,-500.0,0.00028219,8]
[425022536,1781435462000,-500.0,0.00028219,8]
[425022535,1781435462000,-540.71,0.00028219,8]
[425022532,1781435462000,-500.0,0.00028219,8]
[425022534,1781435462000,-1212.61,0.00028219,8]
[425022531,1781435462000,-500.0,0.00028219,8]
[425022538,1781435462000,-500.0,0.00028219,8]
[425022540,1781435462000,-500.0,0.00028219,8]
[425022543,1781435462000,-500.0,0.00028219,8]
[425022539,1781435462000,-1560.74,0.00028219,8]
[425022544,1781435462000,-2765.89,0.00028219,8]
[425022572,1781435462000,-500.0,0.00028219,8]
[425022533,1781435462000,-500.0,0.00028219,8]
[425022573,1781435462000,-500.0,0.00028219,8]
[425022602,1781435462000,-311.05496421,0.00028219,8]
[425022603,1781435462000,-598.75,0.00028219,8]
[425022605,1781435462000,-570.94,0.00028219,8]
[425022606,1781435462000,-500.0,0.00028219,8]
[425022612,1781435462000,-1919.91,0.00028219,8]
[425022608,1781435462000,-500.0,0.00028219,8]
[425022625,1781435462000,-830.68,0.00028219,8]
[425022610,1781435462000,-338.89955627,0.00028219,8]
[425022607,1781435462000,-787.18,0.00028219,8]
[425022617,1781435462000,-500.0,0.00028219,8]
[425022616,1781435462000,-560.4,0.00028219,8]
[425022614,1781435462000,-500.0,0.00028219,8]
[425022611,1781435462000,-741.68,0.00028219,8]
[425022613,1781435462000,-500.0,0.00028219,8]
[425022609,1781435462000,-636.28,0.00028219,8]
[425022615,1781435462000,-2216.26,0.00028219,8]
[425022619,1781435462000,-995.65,0.00028219,8]
[425022618,1781435462000,-500.0,0.00028219,8]
[425022621,1781435462000,-500.0,0.00028219,8]
[425022620,1781435462000,-500.0,0.00028219,8]
[425022624,1781435462000,-500.0,0.00028219,8]
[425022627,1781435462000,-500.0,0.00028219,8]
[425022623,1781435462000,-605.94,0.00028219,8]
[425022626,1781435462000,-500.0,0.00028219,8]
[425022567,1781435462000,-500.0,0.00028219,8]
[425022604,1781435462000,-500.0,0.00028219,8]
[425022601,1781435462000,-912.53,0.00028219,8]
[425022622,1781435462000,-500.0,0.00028219,8]
[425022599,1781435462000,-1588.13,0.00028219,8]
[425022600,1781435462000,-500.0,0.00028219,8]
[425022577,1781435462000,-500.0,0.00028219,8]
[425022576,1781435462000,-500.0,0.00028219,8]
[425022574,1781435462000,-500.0,0.00028219,8]
[425022583,1781435462000,-500.0,0.00028219,8]
[425022579,1781435462000,-1003.12,0.00028219,8]
[425022578,1781435462000,-1811.24,0.00028219,8]
[425022581,1781435462000,-1099.49,0.00028219,8]
[425022582,1781435462000,-531.55,0.00028219,8]
[425022580,1781435462000,-987.93,0.00028219,8]
[425022584,1781435462000,-1200.46,0.00028219,8]
[425022586,1781435462000,-654.37,0.00028219,8]
[425022575,1781435462000,-1648.44,0.00028219,8]
[425022588,1781435462000,-500.0,0.00028219,8]
[425022595,1781435462000,-634.38,0.00028219,8]
[425022589,1781435462000,-522.95,0.00028219,8]
[425022598,1781435462000,-552.94,0.00028219,8]
[425022592,1781435462000,-500.0,0.00028219,8]
[425022593,1781435462000,-774.71,0.00028219,8]
[425022596,1781435462000,-159.7275349,0.00028219,8]
[425022591,1781435462000,-912.82,0.00028219,8]
[425022587,1781435462000,-500.0,0.00028219,8]
[425022590,1781435462000,-777.97,0.00028219,8]
[425022585,1781435462000,-500.0,0.00028219,8]
[425022594,1781435462000,-1189.81,0.00028219,8]
[425022597,1781435462000,-500.0,0.00028219,8]
[425022660,1781435463000,-1784.22,0.00028219,8]
[425022654,1781435463000,-500.0,0.00028219,8]
[425022659,1781435463000,-1912.54,0.00028219,8]
[425022655,1781435463000,-500.0,0.00028219,8]
[425022651,1781435463000,-781.07,0.00028219,8]
[425022652,1781435463000,-360.14394158,0.00028219,8]
[425022658,1781435463000,-630.17619635,0.00028219,8]
[425022653,1781435463000,-500.0,0.00028219,8]
[425022657,1781435463000,-1123.95,0.00028219,8]
[425022666,1781435463000,-784.08,0.00028219,8]
[425022662,1781435463000,-831.75,0.00028219,8]
[425022671,1781435463000,-500.0,0.00028219,8]
[425022667,1781435463000,-583.27,0.00028219,8]
[425022664,1781435463000,-532.89,0.00028219,8]
[425022669,1781435463000,-500.0,0.00028219,8]
[425022665,1781435463000,-557.26,0.00028219,8]
[425022663,1781435463000,-500.0,0.00028219,8]
[425022656,1781435463000,-500.0,0.00028219,8]
[425022668,1781435463000,-500.0,0.00028219,8]
[425022661,1781435463000,-500.0,0.00028219,8]
[425022650,1781435463000,-722.31,0.00028219,8]
[425022634,1781435463000,-500.0,0.00028219,8]
[425022641,1781435463000,-500.0,0.00028219,8]
[425022670,1781435463000,-545.5,0.00028219,8]
[425022629,1781435463000,-735.69,0.00028219,8]
[425022639,1781435463000,-500.0,0.00028219,8]
[425022628,1781435463000,-1100.07,0.00028219,8]
[425022631,1781435463000,-697.82,0.00028219,8]
[425022632,1781435463000,-2873.83,0.00028219,8]
[425022635,1781435463000,-500.0,0.00028219,8]
[425022633,1781435463000,-500.0,0.00028219,8]
[425022630,1781435463000,-846.65,0.00028219,8]
[425022646,1781435463000,-500.0,0.00028219,8]
[425022636,1781435463000,-500.0,0.00028219,8]
[425022637,1781435463000,-1341.19,0.00028219,8]
[425022642,1781435463000,-793.99,0.00028219,8]
[425022645,1781435463000,-500.0,0.00028219,8]
[425022640,1781435463000,-500.0,0.00028219,8]
[425022648,1781435463000,-500.0,0.00028219,8]
[425022643,1781435463000,-500.0,0.00028219,8]